Cogmind - Beta 16.1 @@@ ROGUE MODE // 2026.04.06 @ 10:29:56 Player: gamerman Result: Destroyed by CL-3F7(R) with Subdweller Machine Gun Performance ------------- Evolutions (0) 0 Regions Visited (3) 600 Robots Destroyed (25) 125 Value Destroyed (641) 641 Prototype IDs (13) 260 Alien Tech Used (0) 0 Bonus (-33) -33 TOTAL SCORE: 1593 Bonus ------- Friendly Fire -33 Cogmind --------- Core Integrity 0/250 Matter 60/300 Energy 26/100 System Corruption 5% Temperature Cool (0) Movement Flying (44) Location -10/Subcaves Parts ------- > --- POWER (1) -------- (None) > --- PROPULSION (2) --- Flight Unit Makeshift Flight Unit > --- UTILITY (2) ------ Gun Armor > --- WEAPON (2+2) ----- Subdweller Laser Subdweller Laser > --- INVENTORY (5) ---- 1B-0RG's Assimilator Peak State ------------ > --- POWER ------------ (None) > --- PROPULSION ------- Flight Unit Makeshift Flight Unit > --- UTILITY ---------- Gun Armor > --- WEAPON ----------- Subdweller Laser Subdweller Laser > --- INVENTORY -------- 1B-0RG's Assimilator [Rating: 24] Favorites ----------- Power Subdweller Power Source Engine Subdweller Power Source Propulsion Flight Unit Treads Light Treads Hover Unit Hover Unit Flight Unit Flight Unit Utility Propulsion Shielding Device Heat Sink Storage Small Storage Unit Processor Signal Interpreter Protection Propulsion Shielding Weapon Medium Laser Energy Gun Medium Laser Energy Cannon Subdweller Beam Cannon Ballistic Gun Assault Rifle Ballistic Cannon Battle Cannon Launcher Subdweller Shrapnel Launcher Special Weapon Multitool Build | -11 -10 -10 -10 ------- Run | Yrd Mat Min Sub Slots Evolved . | . . . . Power . | . . . . Propulsion . | . . . . Utility . | . . . . Weapon . | . . . . Parts Attached 37 | 6 5 5 21 Power 7 | 1 1 1 4 Engine 7 | 1 1 1 4 Core . | . . . . Reactor . | . . . . Propulsion 13 | 2 2 2 7 Treads 2 | 2 . . . Leg . | . . . . Wheel . | . . . . Hover 2 | . 2 . . Flight 9 | . . 2 7 Utility 6 | 1 1 1 3 Device 1 | . . . 1 Storage 1 | 1 . . . Processor 1 | . 1 . . Hackware . | . . . . Protection 3 | . . 1 2 Artifact . | . . . . Weapon 11 | 2 1 1 7 Energy Gun 5 | 1 1 1 2 Energy Cannon 1 | . . . 1 Ballistic Gun 2 | 1 . . 1 Ballistic Cannon 1 | . . . 1 Launcher 1 | . . . 1 Special Weapon 1 | . . . 1 Impact Weapon . | . . . . Slashing Weapon . | . . . . Piercing Weapon . | . . . . Special Melee Weapon . | . . . . Unidentified Prototypes . | . . . . Parts Lost 10 | . . 1 9 Power 2 | . . . 2 Propulsion 3 | . . 1 2 Utility 3 | . . . 3 Weapon 2 | . . . 2 Highest Loss Streak 3 | . . 1 3 To Critical Strikes . | . . . . Average Backups 3 | 1 3 5 3 Power . | . 1 . . Propulsion 1 | . . 1 2 Utility . | . . 2 . Weapon . | . 1 1 . Tool/Special . | . . . . Unused Backups 8 | . 1 4 3 Power 1 | . . 1 . Propulsion . | . . . . Utility 1 | . . . 1 Weapon 5 | . 1 3 1 Tool/Special 1 | . . . 1 Average Slot Usage (%) 85 | . 94 99 79 Engine 12 | . 14 14 11 Treads 2 | . 19 . . Hover 3 | . 8 11 . Flight 20 | . . 16 27 Device 3 | . . . 4 Storage 3 | . 14 5 . Processor 5 | . 12 14 . Protection 9 | . . 8 12 Energy Gun 14 | . 15 28 10 Ballistic Gun 2 | . 9 . . Ballistic Cannon 1 | . . . 2 Launcher 3 | . . . 5 Peak Build Rating 24 | 6 7 7 24 Average Rating 10 | 4 6 6 12 On Entrance 5 | . 6 7 7 Avg Prop Armor Cover (%) . | . . . . Naked Turns . | . . . . Heaviest Build 25 | 14 14 12 25 Greatest Support 40 | 40 40 12 16 Greatest Overweight (x) 2 | 2 1 1 2 Average Overweight (x) . | . . . . Largest Inventory Capacity 8 | 8 8 8 5 Average Capacity 5 | 6 8 6 5 Most Carried 8 | 3 8 8 5 Average Carried 4 | 1 3 5 4 Final Capacity 8 | 8 8 5 5 Final Carried 7 | 2 7 5 5 Class Distribution -------------------- 97% | Mutant Dominant Class ---------------- Mutant | -10/Materials Mutant | -10/Mines Mutant | -10/Subcaves Resources | -11 -10 -10 -10 ----------- Run | Yrd Mat Min Sub Matter Collected 941 | 225 147 60 509 Remotely . | . . . . Salvage Created 890 | . 403 241 246 Parts 62 | . 22 16 24 Haulers Intercepted 2 | . 2 . . Recyclers Shooed . | . . . . Parts Field Recycled . | . . . . Retrieved Matter . | . . . . Parts Self-Destructed 8 | . . . 8 Prevented . | . . . . Parts Restored . | . . . . Kills | -11 -10 -10 -10 ------- Run | Yrd Mat Min Sub Combat Hostiles Destroyed 22 | . 6 7 9 Guns 18 | . 6 7 5 Cannons 3 | . . . 3 AOE 1 | . . . 1 Classes Destroyed 7 | . 3 1 3 Hauler 2 | . 2 . . Watcher 1 | . 1 . . Swarmer 8 | . . 3 5 Grunt 10 | . 6 4 . Sentry 1 | . . . 1 Subdweller 3 | . . . 3 Scientist 1 | . . . 1 Best Kill Streak 4 | . 3 3 4 Combat Bots Only 4 | . 3 3 4 Max Kills in Single Turn 1 | . 1 1 1 Gunslinging . | . . . . Exploded 1 | . . . 1 Melee . | . . . . Uniques/NPCs Destroyed . | . . . . Combat | -11 -10 -10 -10 -------- Run | Yrd Mat Min Sub Hostile Shots Fired 144 | . 38 22 84 Missed 52 | . 13 7 32 Hits 92 | . 25 15 52 Projectile 92 | . 25 15 52 AOE 5 | . . . 5 Critical Strikes 1 | . . . 1 Actively Blocked 1 | . . . 1 Damage Taken 1420 | . 268 197 955 Core 255 | . 54 59 142 Absorbed by Shields . | . . . . Redirected to Shielding 33 | . . . 33 Core Remaining (%) 100 | 100 . . . Volleys Fired 160 | . 29 20 111 Largest 2 | . 2 2 2 Hottest 120 | . 100 100 120 Shots Fired 208 | . 54 26 128 Gun 143 | . 54 26 63 Cannon 38 | . . . 38 Launcher 11 | . . . 11 Special 16 | . . . 16 Kinetic 77 | . 24 . 53 Thermal 131 | . 30 26 75 Explosive . | . . . . Electromagnetic . | . . . . Robot Hit Streak 11 | . 11 7 11 Robot Miss Streak 5 | . 3 3 5 Penetration Max . | . . . . Secondary Targets . | . . . . Shots Hit Robots 91 | . 38 18 35 Core Hits 45 | . 17 13 15 Critical Kills . | . . . . Critical Parts Destroyed . | . . . . Critical Strikes 8 | . 2 3 3 Burn 8 | . 2 3 3 Melee Attacks . | . . . . Impact . | . . . . Slashing . | . . . . Piercing . | . . . . Sneak Attacks . | . . . . Combat Hostiles . | . . . . Follow-up Attacks . | . . . . Damage Inflicted 1179 | . 464 225 490 Guns 994 | . 464 225 305 Cannons 72 | . . . 72 Explosions 83 | . . . 83 Melee . | . . . . Ramming . | . . . . Kinetic 436 | . 181 . 255 Thermal 743 | . 283 225 235 Explosive . | . . . . Electromagnetic . | . . . . Impact . | . . . . Slashing . | . . . . Piercing . | . . . . Highest Corruption 5 | . 1 1 5 Average Corruption 1 | . 1 1 1 Corruption Purged . | . . . . Corruption Blocked . | . . . . Effects 15 | . . 2 13 Message Errors 7 | . . . 7 Matter Fused 1 | . . . 1 Heat Flow Errors 1 | . . . 1 Data Loss (minor) 1 | . . . 1 Data Loss (major) 4 | . . 2 2 Weapon Failures 1 | . . . 1 Overload Shots . | . . . . Overflow Damage 8 | . . . 8 Projectiles 8 | . . . 8 Explosions . | . . . . Melee . | . . . . Knockbacks . | . . . . Impact . | . . . . Kinetic . | . . . . Secondary . | . . . . Self-Inflicted Damage . | . . . . Shots . | . . . . Rammed . | . . . . Targets Rammed . | . . . . Kicked . | . . . . Crushed . | . . . . Highest Temperature 294 | . 147 294 236 Average Temperature 70 | . 50 109 35 Received Heat Transfer 270 | . 150 90 30 Effects 2 | . . 1 1 Interference 2 | . . 1 1 Siege Activations . | . . . . Martial Activations . | . . . . Shielding Activations . | . . . . Robots Disrupted . | . . . . Combat Hostiles . | . . . . Robots Corrupted . | . . . . Combat Hostiles . | . . . . Parts Fried . | . . . . Impact Corruptions . | . . . . Robots Melted . | . . . . Combat Hostiles . | . . . . Parts Melted 5 | . 2 3 . Heat Transferred 2765 | . 999 888 878 Parts Sabotaged . | . . . . Parts Stolen . | . . . . Parts Stripped . | . . . . Power Chain Reactions . | . . . . Alert | -11 -10 -10 -10 ------- Run | Yrd Mat Min Sub Maximum Alert Level . | . . . . Low Security (%) 100 | 100 100 100 . Level 1 . | . . . . Level 2 . | . . . . Level 3 . | . . . . Level 4 . | . . . . Level 5 . | . . . . High Security . | . . . . Max Security . | . . . . Peak Influence 137 | . 103 137 . Initial 22 | . . 22 . Average 59 | . 53 79 . Influence Increases 652 | . 197 185 270 Destroy 0b10 Robot/C 380 | . 120 140 120 Destroy 0b10 Robot/NC 15 | . 15 . . Destroy Leader 56 | . 26 30 . Successful Hack 6 | . 6 . . Select Force Hacks 30 | . 30 . . Disable Machine 15 | . . 15 . Lose Combat Pursuer 150 | . . . 150 Influence Decreases 652 | . 140 215 297 Entered New Map 50 | . . 35 15 Time Decay 532 | . 140 170 222 Lost Part 70 | . . 10 60 Squads Dispatched 2 | . 2 . . Investigation 2 | . 2 . . Extermination . | . . . . Reinforcement . | . . . . Assault . | . . . . Garrison . | . . . . Intercept . | . . . . Searches Triggered . | . . . . Construction Impeded . | . . . . Haulers Reinforced . | . . . . Active Scanning Responses . | . . . . Cargo Convoy Interrupts . | . . . . Stealth | -11 -10 -10 -10 --------- Run | Yrd Mat Min Sub Distress Signals 1 | . 1 . . Communications Jammed . | . . . . Distress Signals . | . . . . Times Spotted 31 | . 7 6 18 Peak Tracking Total 6 | . 4 3 6 Tactical Retreats 4 | . . . 4 Traps | -11 -10 -10 -10 ------- Run | Yrd Mat Min Sub Traps Triggered 2 | . 2 . . Indirectly . | . . . . Trap Hack Attempts . | . . . . Triggered . | . . . . Disarmed . | . . . . Reprogrammed . | . . . . Reused . | . . . . Traps Extracted . | . . . . Installed . | . . . . Triggered . | . . . . Machines | -11 -10 -10 -10 ---------- Run | Yrd Mat Min Sub Machines Disabled 2 | . . 1 1 Max in Single Turn 1 | . . 1 1 Machines Repaired . | . . . . Machines Dismantled . | . . . . Machines Sabotaged . | . . . . Overloaded Fab Kills . | . . . . Hacking | -11 -10 -10 -10 --------- Run | Yrd Mat Min Sub Machines Accessed 4 | . 3 . 1 Terminals 2 | . 2 . . Fabricators . | . . . . Repair Stations . | . . . . Recycling Units 1 | . 1 . . Scanalyzers . | . . . . Garrison Access . | . . . . Total Hacks 15 | . 6 . 9 Successful 11 | . 2 . 9 Failed 4 | . 4 . . Catastrophic . | . . . . Database Lockouts . | . . . . Manual 5 | . 5 . . Terminals 5 | . 5 . . Fabricators . | . . . . Repair Stations . | . . . . Recycling Units 1 | . 1 . . Scanalyzers . | . . . . Garrison Access . | . . . . Terminal Hacks 10 | . 1 . 9 Record 8 | . . . 8 Terminal Index 1 | . 1 . . Proto ID Catalog 1 | . . . 1 Fabricator Hacks . | . . . . Repair Station Hacks . | . . . . Recycling Unit Hacks . | . . . . Scanalyzer . | . . . . Garrison Access Hacks . | . . . . Unauthorized Hacks 1 | . 1 . . Terminals . | . . . . Fabricators . | . . . . Repair Stations . | . . . . Recycling Units 1 | . 1 . . Tunnel 1 | . 1 . . Scanalyzers . | . . . . Garrison Access . | . . . . Data Cores Recovered . | . . . . Used . | . . . . Hacking Detections 2 | . 2 . . Full Trace Events 1 | . 1 . . Feedback Events . | . . . . Feedback Blocked . | . . . . Robot Schematics Acquired . | . . . . Robots Built . | . . . . Authchips . | . . . . Time . | . . . . Total Robot Build Rating . | . . . . Part Schematics Acquired . | . . . . Parts Built . | . . . . Authchips . | . . . . Time . | . . . . Total Part Build Rating . | . . . . Part Studies Acquired . | . . . . Parts Repaired . | . . . . Time . | . . . . Parts Recycled . | . . . . Recycled Matter . | . . . . Retrieved Matter . | . . . . Retrieved Components . | . . . . Parts Scanalyzed . | . . . . Part Schematics Acquired . | . . . . Parts Damaged . | . . . . Bothacking | -11 -10 -10 -10 ------------ Run | Yrd Mat Min Sub Used RIF Installer . | . . . . Robots Hacked . | . . . . Non-combat . | . . . . Combat . | . . . . Robot Hacks Applied . | . . . . Relay Couplers Released . | . . . . Fabnet Peak Effective % . | . . . . Robots Rewired . | . . . . Allies Hacked . | . . . . Hacks Repelled . | . . . . Allies | -11 -10 -10 -10 -------- Run | Yrd Mat Min Sub Total Allies . | . . . . Largest Group . | . . . . Highest-Rated Group . | . . . . Highest-Rated Ally . | . . . . Total Orders . | . . . . Ally Attacks . | . . . . Total Damage . | . . . . Kills . | . . . . Allies Corrupted . | . . . . Allies Melted . | . . . . Intel | -11 -10 -10 -10 ------- Run | Yrd Mat Min Sub Active Infowar (turns) . | . . . . Robot Analysis Total . | . . . . Derelict Logs Recovered . | . . . . Drone Launches . | . . . . Drone Recoveries . | . . . . Exploration | -11 -10 -10 -10 ------------- Run | Yrd Mat Min Sub Turns Passed 1958 | 88 284 355 1231 Spaces Moved 1866 | 52 186 368 1260 Core 13 | 13 . . . Treads 108 | 39 69 . . Legs . | . . . . Wheels . | . . . . Hover 265 | . 117 148 . Flight 1480 | . . 220 1260 Fastest Speed 37 | 50 56 37 37 Average Speed 70 | 148 94 44 70 Slowest Speed 214 | 160 160 120 214 Overloaded Moves . | . . . . Propulsion Burnouts . | . . . . Robots Hopped 3 | . . 1 2 Potential Cave-ins 20 | . . . 20 Cave-ins Triggered 3 | . . . 3 Exploration Rate (%) 36 | 5 32 64 43 Regions Visited 3 Branch Regions 2 Pre-discovered Areas 2 | . 1 . 1 Known Exits Taken 2 | . 1 1 . Unknown Exits Taken 1 | 1 . . . Scrap Searched 6 | . . . 6 Spaces Dug 53 | . . . 53 Terrain Destroyed 154 | . . . 154 Melee . | . . . . Projectile 23 | . . . 23 AOE 131 | . . . 131 Terrain Rammed . | . . . . Walls Destroyed . | . . . . Machines Disabled . | . . . . Actions | -11 -10 -10 -10 --------- Run | Yrd Mat Min Sub Total 2305 | 60 239 532 1474 Wait 178 | . 9 129 40 Move 1856 | 51 185 365 1255 Hop 3 | . . 1 2 Pick Up 26 | 3 6 5 12 Fast Attach 23 | 5 5 . 13 Attach 7 | 1 . 2 4 Detach . | . . . . Swap 13 | . . 3 10 Drop 38 | . 5 7 26 Fire 160 | . 29 20 111 Melee . | . . . . Ram . | . . . . Kick . | . . . . Crush . | . . . . Escape Stasis 1 | . . . 1 Rewire . | . . . . Trap . | . . . . Miscellaneous . | . . . . Route ------- -11/Scrapyard -10/Materials -10/Mines (discovered 3 exits: *Mat x2 / *Sub) -10/Subcaves (discovered 1 exit: [*Rec]) History --------- Turn | Location | Event 5 | -11/Scrapyard | Discovered new exit (range 16) 89 | -11/Scrapyard | Entered Materials 90 | -10/Materials | Met a group of wandering Federalists 307 | -10/Materials | Build established: Mutant 343 | -10/Materials | Discovered new exit (range 11) 369 | -10/Materials | Identified exit to Mines 373 | -10/Materials | Entered Mines 448 | -10/Mines | Discovered new exit (range 15) 466 | -10/Mines | Identified exit to Materials 591 | -10/Mines | Discovered exit to Materials (range 4) 711 | -10/Mines | Discovered new exit (range 5) 728 | -10/Mines | Identified exit to Subcaves 728 | -10/Mines | Entered Subcaves 729 | -10/Subcaves | Approached by a straggling Scientist 763 | -10/Subcaves | Shifting Twisted Machinery released Scrap Shield 778 | -10/Subcaves | Shifting Twisted Machinery released Sub. Shrapnel Launcher 869 | -10/Subcaves | Core integrity fell below 50% 925 | -10/Subcaves | Discovered new exit (range 8) 928 | -10/Subcaves | Lost 3 parts (1p1n1w) 1257 | -10/Subcaves | Core integrity fell below 20% 1358 | -10/Subcaves | Shifting Twisted Machinery released Shrapnel Trap 1423 | -10/Subcaves | Learned location of Zion (-6) 1423 | -10/Subcaves | Met a Zionite searching for "candidates" 1437 | -10/Subcaves | Shifting Twisted Machinery released Sub. Beam Cannon 1758 | -10/Subcaves | Crushed by falling debris 1771 | -10/Subcaves | Crushed by falling debris 1793 | -10/Subcaves | Crushed by falling debris 1802 | -10/Subcaves | Visited 4L-MR0's lab 1808 | -10/Subcaves | Found Gun Armor 1809 | -10/Subcaves | Attached Gun Armor, gained temporary slots: Weapon x2 1814 | -10/Subcaves | Found Prototype Special Melee Weapon 1951 | -10/Subcaves | Ambushed by Subdweller buried in earth 1959 | -10/Subcaves | Destroyed by CL-3F7(R) with Subdweller Machine Gun Last Messages --------------- 01813_ Dropped Sub. Laser. 01814_ Acquired Prototype Special Melee Weapon. 01817_ 4L-MR0 mumbles: "I'm surprised some of them are even willing to come in here given their fear of my usual visitors." 01817_ Connecting with 4L-MR0's Prototype Logs... 01832_ Subatomizers dissect the Wheel. 01837_ System corrupted: Heat flow error (+272). 01838_ Overheating: System interference. 01838_ Sub. Beam Cannon temporarily disabled. 01852_ HL|RYVVC6Z 8BNLVHD&IS5G0PDO: 01868_ Sub. Beam Cannon shoots sparks and powers down. 01870_ Dropped Broken Sub. Beam Cannon. 01892_ Subatomizers dissect the Flight Unit. 01893_ Acquired Sub. Laser. 01919_ /KXRMTJ2GYJNKK=